[Event "Early-Titled-Tuesday-Blitz-February-13-2024"]
[Site "Chess.com"]
[Date "2024.02.13"]
[Round "8"]
[White "rcmz"]
[Black "Slovineanu"]
[Result "0-1"]
[WhiteElo "2174"]
[BlackElo "2400"]
[TimeControl "180+1"]
[EndTime "9:28:23 PST"]
[Termination "Slovineanu won by checkmate"]

1. b4 {[%clk 0:03:00.9]} 1... Nf6 {[%clk 0:02:55.5]} 2. Bb2 {[%clk 0:02:59.8]}
2... g6 {[%clk 0:02:54.2]} 3. e3 {[%clk 0:02:59.3]} 3... Bg7 {[%clk 0:02:54.4]}
4. f4 {[%clk 0:02:59.9]} 4... O-O {[%clk 0:02:54.4]} 5. Nf3 {[%clk 0:03:00.5]}
5... d5 {[%clk 0:02:54.7]} 6. Be2 {[%clk 0:03:00.1]} 6... a5 {[%clk 0:02:54.7]}
7. b5 {[%clk 0:02:59.6]} 7... c5 {[%clk 0:02:54.7]} 8. c4 {[%clk 0:02:59.3]}
8... e6 {[%clk 0:02:48.5]} 9. O-O {[%clk 0:02:57.6]} 9... b6 {[%clk 0:02:48.3]}
10. Qc2 {[%clk 0:02:57.4]} 10... Bb7 {[%clk 0:02:48.1]} 11. Ne5 {[%clk
0:02:56.2]} 11... Nbd7 {[%clk 0:02:46.6]} 12. Nxd7 {[%clk 0:02:55.5]} 12... Qxd7
{[%clk 0:02:43.3]} 13. Be5 {[%clk 0:02:52.3]} 13... Ne8 {[%clk 0:02:35.5]} 14.
Qb2 {[%clk 0:02:46.7]} 14... Rd8 {[%clk 0:02:30]} 15. d3 {[%clk 0:02:37.4]}
15... dxc4 {[%clk 0:02:13.1]} 16. dxc4 {[%clk 0:02:35.5]} 16... Bxe5 {[%clk
0:02:13.2]} 17. fxe5 {[%clk 0:02:33.3]} 17... Ng7 {[%clk 0:02:13.4]} 18. Rd1
{[%clk 0:02:10.2]} 18... Qe7 {[%clk 0:02:12.5]} 19. Bf3 {[%clk 0:01:50.6]} 19...
Bxf3 {[%clk 0:02:11.1]} 20. Rxd8 {[%clk 0:01:45.8]} 20... Rxd8 {[%clk
0:02:10.7]} 21. gxf3 {[%clk 0:01:45.6]} 21... Rd1+ {[%clk 0:02:07.2]} 22. Kf2
{[%clk 0:01:45.4]} 22... Qh4+ {[%clk 0:02:06.6]} 23. Kg2 {[%clk 0:01:40.7]}
23... Qg5+ {[%clk 0:02:03.7]} 24. Kf2 {[%clk 0:01:35.9]} 24... Qg1+ {[%clk
0:02:02.9]} 25. Ke2 {[%clk 0:01:35.1]} 25... Qe1# {[%clk 0:02:01.5]} 0-1

[Event "Early-Titled-Tuesday-Blitz-February-13-2024"]
[Site "Chess.com"]
[Date "2024.02.13"]
[Round "8"]
[White "SahibSinghKnight"]
[Black "crazy_m_attack"]
[Result "0-1"]
[WhiteElo "2594"]
[BlackElo "2482"]
[TimeControl "180+1"]
[EndTime "9:28:52 PST"]
[Termination "crazy_m_attack won by resignation"]

1. e4 {[%clk 0:03:00.9]} 1... e5 {[%clk 0:03:00.1]} 2. Nf3 {[%clk 0:03:00.9]}
2... Nc6 {[%clk 0:03:00.8]} 3. Bb5 {[%clk 0:03:01.5]} 3... a6 {[%clk 0:03:01.4]}
4. Ba4 {[%clk 0:03:02.2]} 4... Nf6 {[%clk 0:03:01.9]} 5. O-O {[%clk 0:03:02]}
5... Be7 {[%clk 0:03:02.2]} 6. Re1 {[%clk 0:03:00.8]} 6... b5 {[%clk 0:03:02.6]}
7. Bb3 {[%clk 0:03:01.2]} 7... O-O {[%clk 0:03:03.5]} 8. c3 {[%clk 0:03:01]}
8... d5 {[%clk 0:03:04.1]} 9. exd5 {[%clk 0:03:01]} 9... Nxd5 {[%clk 0:03:05]}
10. Nxe5 {[%clk 0:03:01.5]} 10... Nxe5 {[%clk 0:03:05.9]} 11. Rxe5 {[%clk
0:03:01.9]} 11... c6 {[%clk 0:03:06.6]} 12. d3 {[%clk 0:03:02.5]} 12... Bd6
{[%clk 0:03:06.7]} 13. Re1 {[%clk 0:03:03]} 13... Bf5 {[%clk 0:03:07.3]} 14. Qf3
{[%clk 0:03:02.6]} 14... Qh4 {[%clk 0:03:07.8]} 15. g3 {[%clk 0:02:33.1]} 15...
Qh3 {[%clk 0:03:03.2]} 16. Nd2 {[%clk 0:02:25]} 16... Rae8 {[%clk 0:03:02.1]}
17. Ne4 {[%clk 0:02:14.7]} 17... Bg4 {[%clk 0:03:01.5]} 18. Qg2 {[%clk
0:02:14.8]} 18... Qxg2+ {[%clk 0:03:00.8]} 19. Kxg2 {[%clk 0:02:15.7]} 19... f5
{[%clk 0:03:01.2]} 20. Bd2 {[%clk 0:02:15]} 20... fxe4 {[%clk 0:02:49.3]} 21.
dxe4 {[%clk 0:00:57.5]} 21... Bf3+ {[%clk 0:02:46.8]} 22. Kg1 {[%clk 0:00:57.9]}
22... Bxe4 {[%clk 0:02:43.3]} 23. f4 {[%clk 0:00:58.8]} 23... Kh8 {[%clk
0:02:39.9]} 24. a4 {[%clk 0:00:56]} 24... Bc5+ {[%clk 0:02:39.1]} 25. Kf1 {[%clk
0:00:53.8]} 25... Nf6 {[%clk 0:02:35.5]} 26. axb5 {[%clk 0:00:53.1]} 26... axb5
{[%clk 0:02:36.4]} 27. h3 {[%clk 0:00:46.5]} 27... Nh5 {[%clk 0:02:34.5]} 0-1

[Event "Early-Titled-Tuesday-Blitz-February-13-2024"]
[Site "Chess.com"]
[Date "2024.02.13"]
[Round "8"]
[White "Rozhkov_V"]
[Black "RandomNoob04"]
[Result "1-0"]
[WhiteElo "2409"]
[BlackElo "2583"]
[TimeControl "180+1"]
[EndTime "9:28:56 PST"]
[Termination "Rozhkov_V won by resignation"]

1. e4 {[%clk 0:03:00.8]} 1... e5 {[%clk 0:03:00.2]} 2. Nf3 {[%clk 0:03:00.9]}
2... Nf6 {[%clk 0:03:00.9]} 3. Nc3 {[%clk 0:03:00.8]} 3... Nc6 {[%clk
0:03:00.5]} 4. Bb5 {[%clk 0:02:59.9]} 4... Bd6 {[%clk 0:02:59]} 5. O-O {[%clk
0:02:58.7]} 5... O-O {[%clk 0:02:59.7]} 6. d3 {[%clk 0:02:57.3]} 6... a6 {[%clk
0:02:58.8]} 7. Bc4 {[%clk 0:02:54.1]} 7... h6 {[%clk 0:02:56.9]} 8. a4 {[%clk
0:02:52.9]} 8... Re8 {[%clk 0:02:57]} 9. h3 {[%clk 0:02:52.2]} 9... Bf8 {[%clk
0:02:56.9]} 10. Be3 {[%clk 0:02:50.3]} 10... d6 {[%clk 0:02:55]} 11. Nd2 {[%clk
0:02:49.3]} 11... Be6 {[%clk 0:02:52.7]} 12. f4 {[%clk 0:02:48.5]} 12... exf4
{[%clk 0:02:52.1]} 13. Bxf4 {[%clk 0:02:48.7]} 13... d5 {[%clk 0:02:50.8]} 14.
exd5 {[%clk 0:02:47.9]} 14... Nxd5 {[%clk 0:02:51.7]} 15. Nxd5 {[%clk 0:02:45]}
15... Bxd5 {[%clk 0:02:52.6]} 16. Qg4 {[%clk 0:02:40.2]} 16... Bxc4 {[%clk
0:02:39.7]} 17. Nxc4 {[%clk 0:02:41.1]} 17... Qd4+ {[%clk 0:02:33]} 18. Kh1
{[%clk 0:02:41.4]} 18... b5 {[%clk 0:02:25.8]} 19. axb5 {[%clk 0:02:03.8]} 19...
axb5 {[%clk 0:02:26.7]} 20. Rxa8 {[%clk 0:02:04.2]} 20... Rxa8 {[%clk
0:02:27.6]} 21. Nd2 {[%clk 0:02:04.8]} 21... Qxb2 {[%clk 0:02:07.4]} 22. Ne4
{[%clk 0:02:03.3]} 22... Qxc2 {[%clk 0:01:46.6]} 23. Bxh6 {[%clk 0:01:57.8]}
23... Qxd3 {[%clk 0:01:35.3]} 24. Nf6+ {[%clk 0:01:56.5]} 24... Kh8 {[%clk
0:01:35.4]} 25. Bxg7+ {[%clk 0:01:56]} 1-0

[Event "Early-Titled-Tuesday-Blitz-February-13-2024"]
[Site "Chess.com"]
[Date "2024.02.13"]
[Round "8"]
[White "nicolasbatista3"]
[Black "cukricek"]
[Result "1-0"]
[WhiteElo "2364"]
[BlackElo "2471"]
[TimeControl "180+1"]
[EndTime "9:28:57 PST"]
[Termination "nicolasbatista3 won by resignation"]

1. d4 {[%clk 0:03:00.9]} 1... Nf6 {[%clk 0:02:59.3]} 2. c4 {[%clk 0:03:00.9]}
2... g6 {[%clk 0:02:59.6]} 3. Nc3 {[%clk 0:03:01]} 3... d5 {[%clk 0:02:59.8]} 4.
cxd5 {[%clk 0:03:01.9]} 4... Nxd5 {[%clk 0:03:00.5]} 5. e4 {[%clk 0:03:02.8]}
5... Nxc3 {[%clk 0:03:01.2]} 6. bxc3 {[%clk 0:03:03.7]} 6... Bg7 {[%clk
0:03:01.8]} 7. Bc4 {[%clk 0:03:04.4]} 7... O-O {[%clk 0:03:02.2]} 8. Ne2 {[%clk
0:03:05]} 8... c5 {[%clk 0:03:02.8]} 9. Be3 {[%clk 0:03:05.6]} 9... Nc6 {[%clk
0:03:02.6]} 10. O-O {[%clk 0:03:06]} 10... b6 {[%clk 0:03:03.2]} 11. Rc1 {[%clk
0:02:59.3]} 11... Qc7 {[%clk 0:03:00.7]} 12. Qd2 {[%clk 0:02:49.1]} 12... Na5
{[%clk 0:02:58.6]} 13. Bd3 {[%clk 0:02:47.1]} 13... Be6 {[%clk 0:02:53.8]} 14.
d5 {[%clk 0:02:19.7]} 14... Bd7 {[%clk 0:02:53.5]} 15. h4 {[%clk 0:02:18.8]}
15... e5 {[%clk 0:02:53.6]} 16. h5 {[%clk 0:02:18.6]} 16... Nb7 {[%clk 0:02:52]}
17. h6 {[%clk 0:02:18]} 17... Bh8 {[%clk 0:02:50.3]} 18. Bg5 {[%clk 0:02:10.8]}
18... f6 {[%clk 0:02:49.2]} 19. Be3 {[%clk 0:02:11.4]} 19... Nd6 {[%clk
0:02:47.1]} 20. Ng3 {[%clk 0:01:56.5]} 20... f5 {[%clk 0:02:46.3]} 21. exf5
{[%clk 0:01:49.9]} 21... gxf5 {[%clk 0:02:47.2]} 22. Bg5 {[%clk 0:01:33.3]}
22... e4 {[%clk 0:02:30.5]} 23. Be2 {[%clk 0:01:33.3]} 23... Nf7 {[%clk
0:02:28.3]} 24. Be7 {[%clk 0:01:30.5]} 24... Rfe8 {[%clk 0:02:24.4]} 25. d6
{[%clk 0:01:29.6]} 25... Qc6 {[%clk 0:02:21.6]} 26. Bc4 {[%clk 0:01:29.7]} 26...
Rxe7 {[%clk 0:01:51.9]} 27. Qg5+ {[%clk 0:01:26.8]} 1-0

[Event "Early-Titled-Tuesday-Blitz-February-13-2024"]
[Site "Chess.com"]
[Date "2024.02.13"]
[Round "8"]
[White "Ykow"]
[Black "Korchmar_Vasiliy"]
[Result "0-1"]
[WhiteElo "2531"]
[BlackElo "2737"]
[TimeControl "180+1"]
[EndTime "9:29:12 PST"]
[Termination "Korchmar_Vasiliy won by resignation"]

1. e4 {[%clk 0:03:00.9]} 1... c5 {[%clk 0:02:58.4]} 2. Nf3 {[%clk 0:03:00.3]}
2... d6 {[%clk 0:02:58.9]} 3. d4 {[%clk 0:03:00.1]} 3... cxd4 {[%clk 0:02:59.8]}
4. Nxd4 {[%clk 0:03:00.4]} 4... Nf6 {[%clk 0:03:00.4]} 5. Nc3 {[%clk 0:03:00.9]}
5... Nc6 {[%clk 0:03:00.8]} 6. f3 {[%clk 0:02:59.4]} 6... e5 {[%clk 0:03:00.4]}
7. Nb3 {[%clk 0:02:59.1]} 7... Be7 {[%clk 0:02:59.8]} 8. Be3 {[%clk 0:02:58.8]}
8... O-O {[%clk 0:03:00.4]} 9. Qe2 {[%clk 0:02:57.1]} 9... a5 {[%clk 0:02:58.9]}
10. a4 {[%clk 0:02:56.1]} 10... Be6 {[%clk 0:02:57.2]} 11. O-O-O {[%clk
0:02:55.7]} 11... Nb4 {[%clk 0:02:57.7]} 12. Kb1 {[%clk 0:02:54.1]} 12... Rc8
{[%clk 0:02:50.5]} 13. Qb5 {[%clk 0:02:53.3]} 13... d5 {[%clk 0:02:38.5]} 14.
exd5 {[%clk 0:02:18.9]} 14... Nfxd5 {[%clk 0:02:08.7]} 15. Nxd5 {[%clk 0:02:17]}
15... Bxd5 {[%clk 0:02:09.6]} 16. Bb6 {[%clk 0:01:53.6]} 16... Bxb3 {[%clk
0:01:48.2]} 17. Rxd8 {[%clk 0:01:52.5]} 17... Bxc2+ {[%clk 0:01:45.7]} 18. Ka1
{[%clk 0:01:51.9]} 18... Bxd8 {[%clk 0:01:39]} 19. Be2 {[%clk 0:01:26.2]} 19...
Bxa4 {[%clk 0:01:29.8]} 20. Qxa4 {[%clk 0:01:24.8]} 20... Bxb6 {[%clk
0:01:30.4]} 21. Qb5 {[%clk 0:01:25.3]} 21... Bd4 {[%clk 0:01:28.7]} 22. Bd3
{[%clk 0:01:22]} 22... Rc5 {[%clk 0:01:26.8]} 0-1

[Event "Early-Titled-Tuesday-Blitz-February-13-2024"]
[Site "Chess.com"]
[Date "2024.02.13"]
[Round "8"]
[White "Shodikulov_Jamshid1990"]
[Black "marsofsilva"]
[Result "1-0"]
[WhiteElo "2370"]
[BlackElo "2127"]
[TimeControl "180+1"]
[EndTime "9:29:20 PST"]
[Termination "Shodikulov_Jamshid1990 won by resignation"]

1. c4 {[%clk 0:01:56.8]} 1... e6 {[%clk 0:02:57.5]} 2. Nf3 {[%clk 0:01:55.2]}
2... d5 {[%clk 0:02:57.2]} 3. g3 {[%clk 0:01:53.8]} 3... c5 {[%clk 0:02:52]} 4.
Bg2 {[%clk 0:01:51.3]} 4... d4 {[%clk 0:02:49.4]} 5. O-O {[%clk 0:01:51.2]} 5...
Nc6 {[%clk 0:02:47.5]} 6. d3 {[%clk 0:01:49.9]} 6... Nf6 {[%clk 0:02:47.2]} 7.
e3 {[%clk 0:01:50.5]} 7... Bd6 {[%clk 0:02:45.6]} 8. exd4 {[%clk 0:01:50.7]}
8... cxd4 {[%clk 0:02:45.4]} 9. a3 {[%clk 0:01:49]} 9... a5 {[%clk 0:02:44.8]}
10. Re1 {[%clk 0:01:49]} 10... O-O {[%clk 0:02:43.4]} 11. Bg5 {[%clk 0:01:48.5]}
11... h6 {[%clk 0:02:42.3]} 12. Bxf6 {[%clk 0:01:47.5]} 12... Qxf6 {[%clk
0:02:43.2]} 13. Nbd2 {[%clk 0:01:47.7]} 13... Qd8 {[%clk 0:02:37]} 14. Ne4
{[%clk 0:01:45.6]} 14... Bc5 {[%clk 0:02:34]} 15. Nxc5 {[%clk 0:01:45]} 15...
Qb6 {[%clk 0:02:25]} 16. Na4 {[%clk 0:01:44.1]} 16... Qd8 {[%clk 0:02:24.8]} 17.
Qb3 {[%clk 0:01:41.3]} 17... Re8 {[%clk 0:02:21.2]} 18. Nb6 {[%clk 0:01:41]}
18... Ra6 {[%clk 0:02:19.6]} 19. Nxc8 {[%clk 0:01:41.9]} 19... Qxc8 {[%clk
0:02:19.8]} 20. Qa4 {[%clk 0:01:40.9]} 20... Rb6 {[%clk 0:02:17.1]} 21. Re2
{[%clk 0:01:40.1]} 21... e5 {[%clk 0:02:13.3]} 22. Rae1 {[%clk 0:01:39.8]} 22...
e4 {[%clk 0:02:03]} 23. c5 {[%clk 0:01:26.9]} 23... Ra6 {[%clk 0:01:42]} 24.
Rxe4 {[%clk 0:01:26.5]} 24... Rxe4 {[%clk 0:01:39]} 25. Rxe4 {[%clk 0:01:27.4]}
25... Qd7 {[%clk 0:01:37]} 26. h4 {[%clk 0:01:22.1]} 26... Qd5 {[%clk
0:01:36.7]} 27. Re8+ {[%clk 0:01:17]} 27... Kh7 {[%clk 0:01:34.3]} 28. Ng5+
{[%clk 0:01:17.7]} 1-0

[Event "Early-Titled-Tuesday-Blitz-February-13-2024"]
[Site "Chess.com"]
[Date "2024.02.13"]
[Round "8"]
[White "Mariia89"]
[Black "agvania123"]
[Result "1-0"]
[WhiteElo "2211"]
[BlackElo "2364"]
[TimeControl "180+1"]
[EndTime "9:29:31 PST"]
[Termination "Mariia89 won by resignation"]

1. d4 {[%clk 0:02:59.9]} 1... Nf6 {[%clk 0:02:59.2]} 2. Nf3 {[%clk 0:03:00.4]}
2... g6 {[%clk 0:02:58.1]} 3. c4 {[%clk 0:02:59]} 3... Bg7 {[%clk 0:02:58.4]} 4.
Nc3 {[%clk 0:02:59.9]} 4... d5 {[%clk 0:02:57.6]} 5. Bg5 {[%clk 0:02:59.9]} 5...
c6 {[%clk 0:02:56.1]} 6. e3 {[%clk 0:02:59.8]} 6... O-O {[%clk 0:02:55.5]} 7.
Be2 {[%clk 0:03:00.1]} 7... Bg4 {[%clk 0:02:49]} 8. O-O {[%clk 0:03:00.1]} 8...
Nbd7 {[%clk 0:02:47.4]} 9. c5 {[%clk 0:02:57.3]} 9... h6 {[%clk 0:02:39.3]} 10.
Bh4 {[%clk 0:02:56.4]} 10... Bxf3 {[%clk 0:02:16.1]} 11. Bxf3 {[%clk 0:02:56.3]}
11... e5 {[%clk 0:02:16.8]} 12. b4 {[%clk 0:02:50.3]} 12... e4 {[%clk 0:02:14]}
13. Be2 {[%clk 0:02:50.5]} 13... Qe8 {[%clk 0:01:56.6]} 14. b5 {[%clk
0:02:43.6]} 14... Nh7 {[%clk 0:01:48.5]} 15. bxc6 {[%clk 0:02:39.2]} 15... bxc6
{[%clk 0:01:49.4]} 16. Qa4 {[%clk 0:02:39.1]} 16... Nxc5 {[%clk 0:01:41.9]} 17.
dxc5 {[%clk 0:02:20.6]} 17... Bxc3 {[%clk 0:01:41.1]} 18. Rab1 {[%clk
0:02:21.5]} 18... f5 {[%clk 0:01:35.4]} 19. Bg3 {[%clk 0:02:18.6]} 19... g5
{[%clk 0:01:28.8]} 20. Bd6 {[%clk 0:02:18]} 20... Rf7 {[%clk 0:01:28.3]} 21. Bh5
{[%clk 0:02:12.3]} 21... Rc8 {[%clk 0:01:19.6]} 22. Bxf7+ {[%clk 0:02:10.8]}
22... Qxf7 {[%clk 0:01:20.5]} 23. Rb3 {[%clk 0:02:07.9]} 23... Bf6 {[%clk
0:01:14.7]} 24. Rfb1 {[%clk 0:02:08]} 24... f4 {[%clk 0:01:12.9]} 25. Rb7 {[%clk
0:02:07.6]} 25... Qg6 {[%clk 0:01:10.2]} 26. Qxa7 {[%clk 0:02:00.7]} 26... f3
{[%clk 0:01:06.3]} 27. Rb8 {[%clk 0:01:51.5]} 1-0

[Event "Early-Titled-Tuesday-Blitz-February-13-2024"]
[Site "Chess.com"]
[Date "2024.02.13"]
[Round "8"]
[White "RamonManon0g"]
[Black "Klavdia_Nik"]
[Result "1-0"]
[WhiteElo "2373"]
[BlackElo "2120"]
[TimeControl "180+1"]
[EndTime "9:29:32 PST"]
[Termination "RamonManon0g won by resignation"]

1. e4 {[%clk 0:03:00.3]} 1... e6 {[%clk 0:02:52.6]} 2. d4 {[%clk 0:03:00.1]}
2... d5 {[%clk 0:02:53.1]} 3. Nd2 {[%clk 0:03:00.7]} 3... dxe4 {[%clk
0:02:52.9]} 4. Nxe4 {[%clk 0:03:01.6]} 4... Bd7 {[%clk 0:02:53.5]} 5. Nf3 {[%clk
0:03:01]} 5... Bc6 {[%clk 0:02:54.4]} 6. Bd3 {[%clk 0:03:01]} 6... Nd7 {[%clk
0:02:54.7]} 7. Qe2 {[%clk 0:02:55.3]} 7... Ngf6 {[%clk 0:02:54.5]} 8. Neg5
{[%clk 0:02:52.9]} 8... Qe7 {[%clk 0:02:48.5]} 9. O-O {[%clk 0:02:41.6]} 9... h6
{[%clk 0:02:47.1]} 10. Ne4 {[%clk 0:02:23.4]} 10... Nxe4 {[%clk 0:02:38.6]} 11.
Bxe4 {[%clk 0:02:24.3]} 11... Bxe4 {[%clk 0:02:39]} 12. Qxe4 {[%clk 0:02:24.4]}
12... c6 {[%clk 0:02:38.9]} 13. Ne5 {[%clk 0:02:14.3]} 13... Nf6 {[%clk
0:02:29.7]} 14. Qf3 {[%clk 0:02:10.6]} 14... Qc7 {[%clk 0:02:23.7]} 15. Bf4
{[%clk 0:02:05.8]} 15... Bd6 {[%clk 0:02:23.1]} 16. c4 {[%clk 0:02:05.9]} 16...
O-O-O {[%clk 0:02:08.8]} 17. c5 {[%clk 0:02:03.7]} 17... Bxe5 {[%clk 0:02:08.8]}
18. Bxe5 {[%clk 0:02:03.8]} 18... Qe7 {[%clk 0:02:08.5]} 19. b4 {[%clk
0:01:59.2]} 19... Ne8 {[%clk 0:01:51.7]} 20. b5 {[%clk 0:01:55.1]} 20... f6
{[%clk 0:01:51.6]} 21. Bg3 {[%clk 0:01:49.1]} 21... Rd5 {[%clk 0:01:43.8]} 22.
bxc6 {[%clk 0:01:47.1]} 22... bxc6 {[%clk 0:01:44.7]} 23. Rab1 {[%clk
0:01:46.1]} 23... Nc7 {[%clk 0:01:40.1]} 24. Bd6 {[%clk 0:01:45.9]} 24... Rxd6
{[%clk 0:01:30.9]} 25. cxd6 {[%clk 0:01:45.6]} 25... Qxd6 {[%clk 0:01:31.8]} 26.
Rfc1 {[%clk 0:01:43.1]} 26... Kd7 {[%clk 0:01:30.7]} 27. Rb7 {[%clk 0:01:41.8]}
27... Ra8 {[%clk 0:01:21.6]} 28. d5 {[%clk 0:01:33]} 28... exd5 {[%clk
0:01:18.7]} 29. Qg4+ {[%clk 0:01:32.3]} 1-0

[Event "Early-Titled-Tuesday-Blitz-February-13-2024"]
[Site "Chess.com"]
[Date "2024.02.13"]
[Round "8"]
[White "NelsonLinda"]
[Black "Zohid6"]
[Result "0-1"]
[WhiteElo "2593"]
[BlackElo "2841"]
[TimeControl "180+1"]
[EndTime "9:29:37 PST"]
[Termination "Zohid6 won by resignation"]

1. Nf3 {[%clk 0:03:00.9]} 1... Nf6 {[%clk 0:02:59.2]} 2. d4 {[%clk 0:03:00.7]}
2... e6 {[%clk 0:02:58.9]} 3. Bg5 {[%clk 0:03:00.7]} 3... b6 {[%clk 0:02:57.7]}
4. e4 {[%clk 0:02:58.9]} 4... h6 {[%clk 0:02:57.7]} 5. Bxf6 {[%clk 0:02:58.9]}
5... Qxf6 {[%clk 0:02:58.6]} 6. Bd3 {[%clk 0:02:59]} 6... Bb7 {[%clk 0:02:58.6]}
7. Nbd2 {[%clk 0:02:56.9]} 7... g5 {[%clk 0:02:58.9]} 8. h3 {[%clk 0:02:56.3]}
8... Bg7 {[%clk 0:02:59]} 9. c3 {[%clk 0:02:51.2]} 9... d6 {[%clk 0:02:59.1]}
10. Qe2 {[%clk 0:02:49.8]} 10... Nd7 {[%clk 0:02:58.9]} 11. Ba6 {[%clk
0:02:42.2]} 11... O-O-O {[%clk 0:02:58.2]} 12. O-O-O {[%clk 0:02:36.5]} 12...
Qg6 {[%clk 0:02:55.1]} 13. Ne1 {[%clk 0:02:31.2]} 13... h5 {[%clk 0:02:49.1]}
14. Nc2 {[%clk 0:02:31.1]} 14... f5 {[%clk 0:02:48.2]} 15. Nb4 {[%clk
0:02:27.1]} 15... Nb8 {[%clk 0:02:41.9]} 16. Bxb7+ {[%clk 0:02:19.1]} 16... Kxb7
{[%clk 0:02:42]} 17. exf5 {[%clk 0:02:13.5]} 17... Qxf5 {[%clk 0:02:35.3]} 18.
Rhe1 {[%clk 0:02:10.2]} 18... a5 {[%clk 0:02:32.7]} 19. Nc2 {[%clk 0:02:04.9]}
19... e5 {[%clk 0:02:19.6]} 20. dxe5 {[%clk 0:01:27.7]} 20... Bxe5 {[%clk
0:02:20.5]} 21. Nf3 {[%clk 0:01:28.4]} 21... Rde8 {[%clk 0:02:12.9]} 22. Kb1
{[%clk 0:01:12.1]} 22... Bxc3 {[%clk 0:02:05.3]} 23. Qxe8 {[%clk 0:00:58.6]}
23... Rxe8 {[%clk 0:02:06.2]} 24. Rxe8 {[%clk 0:00:59]} 24... Qb5 {[%clk
0:02:05.4]} 25. Rxb8+ {[%clk 0:00:51.4]} 25... Kxb8 {[%clk 0:02:04.7]} 26. b3
{[%clk 0:00:51.9]} 26... Qe2 {[%clk 0:02:03]} 27. Rc1 {[%clk 0:00:46.9]} 27...
Qxf2 {[%clk 0:02:00.8]} 28. Nxg5 {[%clk 0:00:46.9]} 28... Qxg2 {[%clk
0:02:00.6]} 29. h4 {[%clk 0:00:43.8]} 29... Bd2 {[%clk 0:02:00.6]} 0-1

[Event "Early-Titled-Tuesday-Blitz-February-13-2024"]
[Site "Chess.com"]
[Date "2024.02.13"]
[Round "8"]
[White "Bauman_Guy"]
[Black "chipmunknau"]
[Result "1-0"]
[WhiteElo "2887"]
[BlackElo "2724"]
[TimeControl "180+1"]
[EndTime "9:29:38 PST"]
[Termination "Bauman_Guy won by resignation"]

1. e4 {[%clk 0:03:00.9]} 1... c5 {[%clk 0:02:56.3]} 2. Nf3 {[%clk 0:03:00.3]}
2... d6 {[%clk 0:02:56.7]} 3. d4 {[%clk 0:03:00.6]} 3... cxd4 {[%clk 0:02:57.6]}
4. Nxd4 {[%clk 0:03:01]} 4... Nf6 {[%clk 0:02:58.3]} 5. Nc3 {[%clk 0:03:01.5]}
5... g6 {[%clk 0:02:58.9]} 6. Be3 {[%clk 0:03:01.2]} 6... Bg7 {[%clk 0:02:58.9]}
7. f3 {[%clk 0:03:01.7]} 7... O-O {[%clk 0:02:59.4]} 8. Qd2 {[%clk 0:03:02.2]}
8... Nc6 {[%clk 0:03:00]} 9. O-O-O {[%clk 0:03:02.3]} 9... Nxd4 {[%clk
0:02:59.9]} 10. Bxd4 {[%clk 0:03:01.9]} 10... Be6 {[%clk 0:03:00.5]} 11. Kb1
{[%clk 0:03:02.4]} 11... Qc7 {[%clk 0:03:00.8]} 12. g4 {[%clk 0:03:02]} 12...
Rfc8 {[%clk 0:03:01.5]} 13. h4 {[%clk 0:03:01.7]} 13... Qa5 {[%clk 0:03:01.6]}
14. a3 {[%clk 0:03:02]} 14... Rab8 {[%clk 0:03:02]} 15. h5 {[%clk 0:02:55.9]}
15... b5 {[%clk 0:03:01.6]} 16. hxg6 {[%clk 0:02:56.2]} 16... fxg6 {[%clk
0:03:00]} 17. Qg5 {[%clk 0:02:55.3]} 17... Bf7 {[%clk 0:02:47.6]} 18. Nd5 {[%clk
0:02:06.5]} 18... Bxd5 {[%clk 0:02:27.7]} 19. Bxf6 {[%clk 0:02:05.6]} 19... Ba2+
{[%clk 0:02:11.3]} 20. Kxa2 {[%clk 0:01:59.1]} 20... Bxf6 {[%clk 0:02:12.2]} 21.
Qd5+ {[%clk 0:01:58.6]} 21... Kf8 {[%clk 0:01:51.9]} 22. Rxh7 {[%clk 0:01:56.4]}
22... Ke8 {[%clk 0:01:41.3]} 23. g5 {[%clk 0:01:38.4]} 1-0

[Event "Early-Titled-Tuesday-Blitz-February-13-2024"]
[Site "Chess.com"]
[Date "2024.02.13"]
[Round "8"]
[White "sokidze"]
[Black "Hanging_pointer"]
[Result "0-1"]
[WhiteElo "2814"]
[BlackElo "2644"]
[TimeControl "180+1"]
[EndTime "9:29:50 PST"]
[Termination "Hanging_pointer won by resignation"]

1. e4 {[%clk 0:03:00.9]} 1... c6 {[%clk 0:03:00.9]} 2. d4 {[%clk 0:02:56.3]}
2... d5 {[%clk 0:03:01.8]} 3. e5 {[%clk 0:02:56.5]} 3... Bf5 {[%clk 0:03:00.2]}
4. Nf3 {[%clk 0:02:56.8]} 4... e6 {[%clk 0:02:59.6]} 5. Be2 {[%clk 0:02:57.3]}
5... Ne7 {[%clk 0:02:58.9]} 6. O-O {[%clk 0:02:57.2]} 6... Bg6 {[%clk 0:02:59]}
7. a4 {[%clk 0:02:53.3]} 7... c5 {[%clk 0:02:54.5]} 8. dxc5 {[%clk 0:02:48.6]}
8... Nec6 {[%clk 0:02:53.2]} 9. c3 {[%clk 0:02:35.5]} 9... Bxc5 {[%clk
0:02:30.9]} 10. b4 {[%clk 0:02:35.9]} 10... Be7 {[%clk 0:02:27.5]} 11. Na3
{[%clk 0:02:28.8]} 11... O-O {[%clk 0:02:24.1]} 12. b5 {[%clk 0:02:18.8]} 12...
Na5 {[%clk 0:02:22.8]} 13. Nd4 {[%clk 0:01:47.9]} 13... Nd7 {[%clk 0:02:18.8]}
14. f4 {[%clk 0:01:39.2]} 14... Nc5 {[%clk 0:02:18]} 15. Be3 {[%clk 0:01:34.1]}
15... Rc8 {[%clk 0:02:12.7]} 16. Rc1 {[%clk 0:01:17.5]} 16... Ne4 {[%clk
0:02:11.8]} 17. Nb1 {[%clk 0:01:17.5]} 17... Bc5 {[%clk 0:02:09.6]} 18. Kh1
{[%clk 0:01:13.6]} 18... Qh4 {[%clk 0:02:05.9]} 19. Kg1 {[%clk 0:01:03.8]} 19...
Bb6 {[%clk 0:02:03.4]} 20. Rf3 {[%clk 0:00:47.4]} 20... Nc4 {[%clk 0:02:00.8]}
21. Bxc4 {[%clk 0:00:44.3]} 21... Rxc4 {[%clk 0:02:01.7]} 22. Ne2 {[%clk
0:00:18.2]} 22... Bxe3+ {[%clk 0:01:54.2]} 23. Rxe3 {[%clk 0:00:18.4]} 23...
Qf2+ {[%clk 0:01:54.2]} 0-1